[Event "Norwegian Championship 2022"]
[Site "Kongsvinger, Norway"]
[Date "2022.07.15"]
[Round "8"]
[White "Tallaksen, Levi André"]
[Black "Elsness, Frode"]
[Result "0-1"]
[Board "6"]
[TimeControl "40/5400+30:1800+30"]
[WhiteTitle "FM"]
[BlackTitle "IM"]
[WhiteFideId "1505785"]
[BlackFideId "1501100"]
[WhiteElo "2341"]
[BlackElo "2464"]

1. d4 {[%clk 01:30:57]} {[%emt 00:00:02]} d5 {[%clk 01:30:57]} {[%emt
00:00:04]} 2. c4 {[%clk 01:31:20]} {[%emt 00:00:07]} e6 {[%clk 01:31:24]}
{[%emt 00:00:03]} 3. Nc3 {[%clk 01:31:42]} {[%emt 00:00:07]} c5 {[%clk
01:30:37]} {[%emt 00:01:17]} 4. cxd5 {[%clk 01:32:02]} {[%emt 00:00:10]} cxd4
{[%clk 01:31:03]} {[%emt 00:00:04]} 5. Qxd4 {[%clk 01:32:02]} {[%emt 00:00:29]}
Nc6 {[%clk 01:31:20]} {[%emt 00:00:12]} 6. Qa4 {[%clk 01:21:35]} {[%emt
00:10:58]} exd5 {[%clk 01:31:38]} {[%emt 00:00:13]} 7. Bf4 {[%clk 01:20:43]}
{[%emt 00:01:21]} Bb4 {[%clk 01:24:20]} {[%emt 00:07:47]} 8. e3 {[%clk
01:16:22]} {[%emt 00:04:52]} Nf6 {[%clk 01:21:13]} {[%emt 00:03:38]} 9. Bb5
{[%clk 01:13:05]} {[%emt 00:03:46]} O-O {[%clk 01:13:27]} {[%emt 00:08:16]} 10.
Nge2 {[%clk 01:09:19]} {[%emt 00:04:16]} Qb6 {[%clk 01:10:22]} {[%emt
00:03:34]} 11. O-O {[%clk 01:04:36]} {[%emt 00:05:14]} a6 {[%clk 01:06:30]}
{[%emt 00:04:22]} 12. Bxc6 {[%clk 00:53:05]} {[%emt 00:12:00]} bxc6 {[%clk
01:06:52]} {[%emt 00:00:08]} 13. Qc2 {[%clk 00:53:18]} {[%emt 00:00:17]} Be7
{[%clk 00:59:05]} {[%emt 00:08:16]} 14. Rac1 {[%clk 00:48:18]} {[%emt
00:05:31]} c5 {[%clk 00:50:16]} {[%emt 00:09:19]} 15. Rfd1 {[%clk 00:39:27]}
{[%emt 00:09:20]} Bb7 {[%clk 00:42:52]} {[%emt 00:07:54]} 16. Be5 {[%clk
00:30:37]} {[%emt 00:09:20]} Rfd8 {[%clk 00:37:12]} {[%emt 00:06:10]} 17. Na4
{[%clk 00:24:05]} {[%emt 00:07:03]} Qb5 {[%clk 00:32:12]} {[%emt 00:05:30]} 18.
Bxf6 {[%clk 00:22:17]} {[%emt 00:02:18]} gxf6 {[%clk 00:30:24]} {[%emt
00:02:17]} 19. Nf4 {[%clk 00:20:29]} {[%emt 00:02:17]} d4 {[%clk 00:23:36]}
{[%emt 00:07:20]} 20. Nxc5 {[%clk 00:07:52]} {[%emt 00:13:06]} Bxc5 {[%clk
00:23:48]} {[%emt 00:00:18]} 21. a4 {[%clk 00:05:56]} {[%emt 00:02:26]} Qb6
{[%clk 00:20:15]} {[%emt 00:04:03]} 22. Qxc5 {[%clk 00:06:20]} {[%emt
00:00:06]} Qxc5 {[%clk 00:20:41]} {[%emt 00:00:04]} 23. Rxc5 {[%clk 00:06:46]}
{[%emt 00:00:04]} dxe3 {[%clk 00:21:07]} {[%emt 00:00:04]} 24. Rxd8+ {[%clk
00:04:41]} {[%emt 00:02:35]} Rxd8 {[%clk 00:21:36]} {[%emt 00:00:01]} 25. fxe3
{[%clk 00:05:03]} {[%emt 00:00:07]} Rd1+ {[%clk 00:21:40]} {[%emt 00:00:25]} 26.
Kf2 {[%clk 00:05:31]} {[%emt 00:00:03]} Rd2+ {[%clk 00:22:07]} {[%emt
00:00:04]} 27. Kg3 {[%clk 00:05:00]} {[%emt 00:01:00]} Rxb2 {[%clk 00:22:29]}
{[%emt 00:00:08]} 28. Nd5 {[%clk 00:05:00]} {[%emt 00:00:30]} Kg7 {[%clk
00:17:39]} {[%emt 00:05:20]} 29. e4 {[%clk 00:04:44]} {[%emt 00:00:47]} Rd2
{[%clk 00:17:11]} {[%emt 00:00:58]} 30. a5 {[%clk 00:03:31]} {[%emt 00:01:44]}
f5 {[%clk 00:15:59]} {[%emt 00:01:42]} 31. Ne3 {[%clk 00:02:28]} {[%emt
00:01:32]} fxe4 {[%clk 00:12:43]} {[%emt 00:03:47]} 32. Rc7 {[%clk 00:01:58]}
{[%emt 00:01:00]} Rb2 {[%clk 00:12:02]} {[%emt 00:01:11]} 33. Kf4 {[%clk
00:01:15]} {[%emt 00:01:12]} Kf6 {[%clk 00:03:27]} {[%emt 00:09:05]} 34. Nc4
{[%clk 00:00:52]} {[%emt 00:00:53]} Rb4 {[%clk 00:03:26]} {[%emt 00:00:29]} 35.
Ne3 {[%clk 00:00:33]} {[%emt 00:00:51]} Ke6 {[%clk 00:02:41]} {[%emt 00:01:15]}
36. g4 {[%clk 00:00:53]} {[%emt 00:00:10]} Rb2 {[%clk 00:01:32]} {[%emt
00:01:38]} 37. Nf5 {[%clk 00:00:39]} {[%emt 00:00:44]} Bd5 {[%clk 00:00:55]}
{[%emt 00:01:07]} 38. h4 {[%clk 00:00:34]} {[%emt 00:00:36]} Rf2+ {[%clk
00:00:41]} {[%emt 00:00:44]} 39. Kg5 {[%clk 00:00:34]} {[%emt 00:00:30]} Ke5
{[%clk 00:00:56]} {[%emt 00:00:15]} 40. Rc5 {[%clk 00:30:33]} {[%emt 00:00:32]}
Rf3 {[%clk 00:30:33]} {[%emt 00:00:53]} 41. Kh6 {[%clk 00:22:12]} {[%emt
00:08:50]} e3 {[%clk 00:24:57]} {[%emt 00:06:06]} 42. Rc2 {[%clk 00:22:27]}
{[%emt 00:00:15]} Be4 {[%clk 00:21:15]} {[%emt 00:04:11]} 43. Rc5+ {[%clk
00:22:25]} {[%emt 00:00:33]} Kf4 {[%clk 00:19:33]} {[%emt 00:02:12]} 44. Nd4
{[%clk 00:21:52]} {[%emt 00:01:03]} Rf2 {[%clk 00:18:56]} {[%emt 00:01:06]} 45.
g5 {[%clk 00:19:33]} {[%emt 00:02:50]} Rd2 {[%clk 00:17:02]} {[%emt 00:02:24]}
46. Rc4 {[%clk 00:16:02]} {[%emt 00:04:01]} Rxd4 {[%clk 00:16:05]} {[%emt
00:01:26]} 47. Rxd4 {[%clk 00:16:29]} {[%emt 00:00:03]} e2 {[%clk 00:16:29]}
{[%emt 00:00:06]} 0-1

[Event "Norwegian Championship 2022"]
[Site "Kongsvinger, Norway"]
[Date "2022.07.15"]
[Round "8"]
[White "Djurhuus, Rune"]
[Black "Abdrlauf, Elham"]
[Result "0-1"]
[Board "7"]
[TimeControl "40/5400+30:1800+30"]
[WhiteTitle "GM"]
[BlackTitle "FM"]
[WhiteFideId "1500082"]
[BlackFideId "1533533"]
[WhiteElo "2407"]
[BlackElo "2466"]

1. e4 {[%clk 01:30:57]} {[%emt 00:00:01]} c5 {[%clk 01:30:52]} {[%emt
00:00:09]} 2. Nf3 {[%clk 01:31:23]} {[%emt 00:00:05]} Nc6 {[%clk 01:31:18]}
{[%emt 00:00:04]} 3. Bb5 {[%clk 01:31:51]} {[%emt 00:00:03]} g6 {[%clk
01:31:41]} {[%emt 00:00:06]} 4. Bxc6 {[%clk 01:29:30]} {[%emt 00:02:52]} bxc6
{[%clk 01:31:40]} {[%emt 00:00:31]} 5. O-O {[%clk 01:29:52]} {[%emt 00:00:08]}
Bg7 {[%clk 01:32:06]} {[%emt 00:00:04]} 6. Re1 {[%clk 01:30:01]} {[%emt
00:00:21]} Nh6 {[%clk 01:32:02]} {[%emt 00:00:33]} 7. c3 {[%clk 01:30:17]}
{[%emt 00:00:14]} f5 {[%clk 01:32:17]} {[%emt 00:00:15]} 8. e5 {[%clk
01:30:11]} {[%emt 00:00:36]} Nf7 {[%clk 01:31:49]} {[%emt 00:00:58]} 9. d4
{[%clk 01:28:27]} {[%emt 00:02:15]} cxd4 {[%clk 01:31:46]} {[%emt 00:00:32]} 10.
cxd4 {[%clk 01:28:53]} {[%emt 00:00:04]} O-O {[%clk 01:30:51]} {[%emt
00:01:25]} 11. Bf4 {[%clk 01:26:09]} {[%emt 00:03:13]} e6 {[%clk 01:30:23]}
{[%emt 00:00:59]} 12. h4 {[%clk 01:26:03]} {[%emt 00:00:36]} h6 {[%clk
01:30:08]} {[%emt 00:00:44]} 13. Qd2 {[%clk 01:19:41]} {[%emt 00:06:52]} c5
{[%clk 01:23:56]} {[%emt 00:06:43]} 14. d5 {[%clk 01:15:03]} {[%emt 00:05:08]}
Bb7 {[%clk 01:23:27]} {[%emt 00:00:59]} 15. Nc3 {[%clk 01:15:05]} {[%emt
00:00:27]} Qb6 {[%clk 01:11:13]} {[%emt 00:12:44]} 16. Rad1 {[%clk 01:12:11]}
{[%emt 00:03:25]} Rab8 {[%clk 01:06:34]} {[%emt 00:05:07]} 17. Qe3 {[%clk
01:05:34]} {[%emt 00:07:09]} Qxb2 {[%clk 01:02:03]} {[%emt 00:05:01]} 18. Rb1
{[%clk 01:05:56]} {[%emt 00:00:07]} Qa3 {[%clk 01:02:28]} {[%emt 00:00:05]} 19.
Rb3 {[%clk 01:06:18]} {[%emt 00:00:07]} Qa6 {[%clk 01:00:43]} {[%emt 00:02:15]}
20. Qxc5 {[%clk 01:03:15]} {[%emt 00:03:34]} Ba8 {[%clk 00:56:37]} {[%emt
00:04:36]} 21. Ra3 {[%clk 00:26:13]} {[%emt 00:37:31]} Qc8 {[%clk 00:56:21]}
{[%emt 00:00:45]} 22. Qxa7 {[%clk 00:24:11]} {[%emt 00:02:32]} Rb4 {[%clk
00:54:49]} {[%emt 00:02:02]} 23. Bd2 {[%clk 00:22:49]} {[%emt 00:01:53]} Rg4
{[%clk 00:43:23]} {[%emt 00:11:56]} 24. Ra5 {[%clk 00:16:09]} {[%emt 00:07:09]}
Rc4 {[%clk 00:39:54]} {[%emt 00:03:59]} 25. Qe3 {[%clk 00:11:21]} {[%emt
00:05:18]} Re8 {[%clk 00:39:31]} {[%emt 00:00:53]} 26. Qd3 {[%clk 00:10:31]}
{[%emt 00:01:20]} Rg4 {[%clk 00:34:15]} {[%emt 00:05:46]} 27. a4 {[%clk
00:09:37]} {[%emt 00:01:25]} Qc7 {[%clk 00:33:09]} {[%emt 00:01:36]} 28. Nb5
{[%clk 00:08:45]} {[%emt 00:01:21]} Qb6 {[%clk 00:33:14]} {[%emt 00:00:25]} 29.
Nd6 {[%clk 00:08:51]} {[%emt 00:00:24]} Nxd6 {[%clk 00:32:40]} {[%emt
00:01:04]} 30. exd6 {[%clk 00:09:17]} {[%emt 00:00:04]} Qxd6 {[%clk 00:30:41]}
{[%emt 00:02:29]} 31. Qb3 {[%clk 00:05:55]} {[%emt 00:03:53]} Kh7 {[%clk
00:29:10]} {[%emt 00:02:01]} 32. Rxa8 {[%clk 00:05:00]} {[%emt 00:01:25]} Rxa8
{[%clk 00:27:52]} {[%emt 00:01:47]} 33. dxe6 {[%clk 00:05:29]} {[%emt
00:00:01]} Rgxa4 {[%clk 00:19:37]} {[%emt 00:08:45]} 34. exd7 {[%clk 00:02:08]}
{[%emt 00:03:52]} Qxd7 {[%clk 00:19:50]} {[%emt 00:00:16]} 35. Qe6 {[%clk
00:01:37]} {[%emt 00:01:01]} Qxe6 {[%clk 00:18:40]} {[%emt 00:01:41]} 36. Rxe6
{[%clk 00:02:02]} {[%emt 00:00:05]} R4a6 {[%clk 00:17:31]} {[%emt 00:01:38]} 37.
Re7 {[%clk 00:02:00]} {[%emt 00:00:31]} R8a7 {[%clk 00:17:59]} {[%emt
00:00:04]} 38. Re8 {[%clk 00:02:23]} {[%emt 00:00:06]} Rd7 {[%clk 00:17:21]}
{[%emt 00:01:08]} 39. Be3 {[%clk 00:02:13]} {[%emt 00:00:39]} Bf6 {[%clk
00:17:21]} {[%emt 00:00:31]} 40. Rc8 {[%clk 00:32:05]} {[%emt 00:00:38]} Re6
{[%clk 00:47:10]} {[%emt 00:00:42]} 41. Rc5 {[%clk 00:29:07]} {[%emt 00:03:27]}
Be7 {[%clk 00:45:24]} {[%emt 00:02:17]} 42. Rb5 {[%clk 00:26:38]} {[%emt
00:02:59]} Rf6 {[%clk 00:45:29]} {[%emt 00:00:25]} 43. g3 {[%clk 00:25:18]}
{[%emt 00:01:50]} Bd6 {[%clk 00:42:06]} {[%emt 00:03:54]} 44. Rd5 {[%clk
00:20:26]} {[%emt 00:05:22]} Rdf7 {[%clk 00:40:20]} {[%emt 00:02:15]} 45. Kg2
{[%clk 00:17:25]} {[%emt 00:03:31]} Bc7 {[%clk 00:39:32]} {[%emt 00:01:19]} 46.
Ne5 {[%clk 00:15:23]} {[%emt 00:02:32]} Rg7 {[%clk 00:36:07]} {[%emt 00:03:54]}
47. Nf3 {[%clk 00:15:32]} {[%emt 00:00:22]} Rd6 {[%clk 00:32:18]} {[%emt
00:04:19]} 48. Rb5 {[%clk 00:14:25]} {[%emt 00:01:36]} Rf7 {[%clk 00:32:35]}
{[%emt 00:00:13]} 49. Ne5 {[%clk 00:11:35]} {[%emt 00:03:20]} Re7 {[%clk
00:32:18]} {[%emt 00:00:48]} 50. Nf3 {[%clk 00:12:02]} {[%emt 00:00:03]} Rf6
{[%clk 00:31:26]} {[%emt 00:01:21]} 51. Bc5 {[%clk 00:10:24]} {[%emt 00:02:09]}
Rd7 {[%clk 00:30:56]} {[%emt 00:01:00]} 52. Bd4 {[%clk 00:10:39]} {[%emt
00:00:15]} Rfd6 {[%clk 00:30:50]} {[%emt 00:00:35]} 53. Be3 {[%clk 00:09:59]}
{[%emt 00:01:10]} Rd5 {[%clk 00:31:15]} {[%emt 00:00:05]} 54. Rb4 {[%clk
00:10:08]} {[%emt 00:00:20]} Bd6 {[%clk 00:31:38]} {[%emt 00:00:08]} 55. Rb6
{[%clk 00:07:00]} {[%emt 00:03:37]} Bc5 {[%clk 00:31:29]} {[%emt 00:00:40]} 56.
Bxc5 {[%clk 00:07:26]} {[%emt 00:00:04]} Rxc5 {[%clk 00:31:57]} {[%emt
00:00:01]} 57. Ng1 {[%clk 00:06:11]} {[%emt 00:01:45]} Rcd5 {[%clk 00:29:32]}
{[%emt 00:02:56]} 58. Nh3 {[%clk 00:06:26]} {[%emt 00:00:14]} R5d6 {[%clk
00:30:01]} {[%emt 00:00:01]} 59. Rb5 {[%clk 00:06:43]} {[%emt 00:00:13]} Rf7
{[%clk 00:30:24]} {[%emt 00:00:06]} 60. Rb8 {[%clk 00:05:28]} {[%emt 00:01:45]}
Kg7 {[%clk 00:30:37]} {[%emt 00:00:17]} 61. Ra8 {[%clk 00:05:25]} {[%emt
00:00:33]} Rb7 {[%clk 00:30:48]} {[%emt 00:00:20]} 62. Rc8 {[%clk 00:05:37]}
{[%emt 00:00:18]} Ra6 {[%clk 00:30:18]} {[%emt 00:01:00]} 63. Rd8 {[%clk
00:05:52]} {[%emt 00:00:14]} Kf6 {[%clk 00:28:38]} {[%emt 00:02:10]} 64. Rf8+
{[%clk 00:05:29]} {[%emt 00:00:53]} Rf7 {[%clk 00:28:44]} {[%emt 00:00:24]} 65.
Rh8 {[%clk 00:05:55]} {[%emt 00:00:03]} Kg7 {[%clk 00:28:19]} {[%emt 00:00:55]}
66. Rb8 {[%clk 00:06:20]} {[%emt 00:00:05]} Rc7 {[%clk 00:28:05]} {[%emt
00:00:43]} 67. Rb5 {[%clk 00:05:54]} {[%emt 00:00:57]} Rf6 {[%clk 00:28:01]}
{[%emt 00:00:35]} 68. Ra5 {[%clk 00:06:05]} {[%emt 00:00:19]} Kh7 {[%clk
00:28:26]} {[%emt 00:00:05]} 69. Rb5 {[%clk 00:06:06]} {[%emt 00:00:29]} Rg7
{[%clk 00:28:54]} {[%emt 00:00:01]} 70. Rb4 {[%clk 00:06:23]} {[%emt 00:00:14]}
g5 {[%clk 00:28:56]} {[%emt 00:00:28]} 71. hxg5 {[%clk 00:06:47]} {[%emt
00:00:05]} hxg5 {[%clk 00:29:24]} {[%emt 00:00:02]} 72. g4 {[%clk 00:07:05]}
{[%emt 00:00:13]} Kg6 {[%clk 00:29:01]} {[%emt 00:00:53]} 73. gxf5+ {[%clk
00:06:40]} {[%emt 00:00:55]} Rxf5 {[%clk 00:29:30]} 74. f3 {[%clk 00:04:51]}
{[%emt 00:02:19]} Ra7 {[%clk 00:25:25]} {[%emt 00:04:35]} 75. Rb3 {[%clk
00:05:07]} {[%emt 00:00:12]} Kh5 {[%clk 00:25:41]} {[%emt 00:00:15]} 76. Kg3
{[%clk 00:05:35]} {[%emt 00:00:02]} Ra1 {[%clk 00:25:59]} {[%emt 00:00:12]} 77.
Rc3 {[%clk 00:05:44]} {[%emt 00:00:20]} Ra2 {[%clk 00:25:57]} {[%emt 00:00:33]}
78. Rb3 {[%clk 00:05:54]} {[%emt 00:00:20]} Rc5 {[%clk 00:25:29]} {[%emt
00:00:57]} 79. Rd3 {[%clk 00:06:12]} {[%emt 00:00:13]} Rcc2 {[%clk 00:25:31]}
{[%emt 00:00:27]} 80. Rd5 {[%clk 00:03:32]} {[%emt 00:03:12]} Rg2# {[%emt
00:00:06]} 0-1

[ePGN "0.1;DGT LiveChess/2.2.5"]

[Event "Norwegian Championship 2022"]
[Site "Kongsvinger, Norway"]
[Date "2022.07.16"]
[Round "9"]
[White "Agdestein, Simen"]
[Black "Sjøberg, Isak"]
[Result "1-0"]
[Board "1"]
[TimeControl "40/5400+30:1800+30"]
[WhiteTitle "GM"]
[BlackTitle "FM"]
[WhiteFideId "1500015"]
[BlackFideId "1521640"]
[WhiteElo "2559"]
[BlackElo "2308"]

1. d4 {[%clk 01:30:42]} {[%emt 00:00:13]} Nf6 {[%clk 01:30:29]} {[%emt
00:00:32]} 2. c4 {[%clk 01:31:10]} {[%emt 00:00:05]} g6 {[%clk 01:30:53]}
{[%emt 00:00:06]} 3. Nc3 {[%clk 01:31:36]} {[%emt 00:00:03]} Bg7 {[%clk
01:31:19]} {[%emt 00:00:04]} 4. e4 {[%clk 01:31:44]} {[%emt 00:00:22]} d6
{[%clk 01:31:18]} {[%emt 00:00:31]} 5. Nf3 {[%clk 01:30:24]} {[%emt 00:01:50]}
O-O {[%clk 01:31:23]} {[%emt 00:00:25]} 6. Be2 {[%clk 01:30:48]} {[%emt
00:00:06]} e5 {[%clk 01:31:41]} {[%emt 00:00:12]} 7. O-O {[%clk 01:29:16]}
{[%emt 00:02:02]} Nc6 {[%clk 01:30:59]} {[%emt 00:01:12]} 8. d5 {[%clk
01:29:30]} {[%emt 00:00:16]} Ne7 {[%clk 01:31:14]} {[%emt 00:00:14]} 9. Nd2
{[%clk 01:29:24]} {[%emt 00:00:37]} Nd7 {[%clk 01:26:28]} {[%emt 00:05:16]} 10.
b4 {[%clk 01:28:23]} {[%emt 00:01:32]} a5 {[%clk 01:21:05]} {[%emt 00:05:53]}
11. bxa5 {[%clk 01:26:01]} {[%emt 00:02:52]} Rxa5 {[%clk 01:19:12]} {[%emt
00:02:22]} 12. Nb3 {[%clk 01:20:33]} {[%emt 00:05:58]} Ra8 {[%clk 01:16:39]}
{[%emt 00:03:03]} 13. a4 {[%clk 01:19:37]} {[%emt 00:01:27]} f5 {[%clk
01:11:12]} {[%emt 00:05:57]} 14. f3 {[%clk 01:19:03]} {[%emt 00:01:04]} b6
{[%clk 01:03:36]} {[%emt 00:08:06]} 15. a5 {[%clk 01:11:51]} {[%emt 00:07:42]}
bxa5 {[%clk 00:58:08]} {[%emt 00:05:58]} 16. Be3 {[%clk 01:04:26]} {[%emt
00:07:54]} Nf6 {[%clk 00:48:36]} {[%emt 00:10:02]} 17. c5 {[%clk 01:03:12]}
{[%emt 00:01:44]} a4 {[%clk 00:45:31]} {[%emt 00:03:35]} 18. Nd2 {[%clk
00:57:08]} {[%emt 00:06:34]} h5 {[%clk 00:37:55]} {[%emt 00:08:06]} 19. Rxa4
{[%clk 00:50:51]} {[%emt 00:06:47]} Rxa4 {[%clk 00:35:33]} {[%emt 00:02:52]} 20.
Qxa4 {[%clk 00:51:08]} {[%emt 00:00:14]} f4 {[%clk 00:32:59]} {[%emt 00:03:04]}
21. Bf2 {[%clk 00:51:29]} {[%emt 00:00:09]} g5 {[%clk 00:32:14]} {[%emt
00:01:15]} 22. cxd6 {[%clk 00:48:34]} {[%emt 00:03:26]} cxd6 {[%clk 00:32:23]}
{[%emt 00:00:22]} 23. Nc4 {[%clk 00:46:54]} {[%emt 00:02:09]} Ne8 {[%clk
00:28:02]} {[%emt 00:04:50]} 24. Rb1 {[%clk 00:37:10]} {[%emt 00:10:14]} Bd7
{[%clk 00:22:58]} {[%emt 00:05:34]} 25. Qa5 {[%clk 00:34:00]} {[%emt 00:03:40]}
Qxa5 {[%clk 00:18:53]} {[%emt 00:04:35]} 26. Nxa5 {[%clk 00:33:14]} {[%emt
00:01:16]} Nc8 {[%clk 00:18:59]} {[%emt 00:00:24]} 27. Rb7 {[%clk 00:30:56]}
{[%emt 00:02:48]} Nf6 {[%clk 00:16:39]} {[%emt 00:02:50]} 28. Nc6 {[%clk
00:28:33]} {[%emt 00:02:52]} 1-0

[Event "Norwegian Championship 2022"]
[Site "Kongsvinger, Norway"]
[Date "2022.07.16"]
[Round "9"]
[White "Hammer, Jon Ludvig"]
[Black "Urkedal, Frode Olav Olsen"]
[Result "1-0"]
[Board "2"]
[TimeControl "40/5400+30:1800+30"]
[WhiteTitle "GM"]
[BlackTitle "GM"]
[WhiteFideId "1503707"]
[BlackFideId "1506102"]
[WhiteElo "2638"]
[BlackElo "2555"]

1. d4 {[%clk 01:30:58]} Nf6 {[%clk 01:30:55]} {[%emt 00:00:05]} 2. c4 {[%clk
01:31:22]} {[%emt 00:00:07]} e6 {[%clk 01:31:21]} {[%emt 00:00:03]} 3. Nf3
{[%clk 01:31:46]} {[%emt 00:00:06]} d5 {[%clk 01:31:47]} {[%emt 00:00:04]} 4.
Nc3 {[%clk 01:32:08]} {[%emt 00:00:08]} Be7 {[%clk 01:32:11]} {[%emt 00:00:06]}
5. Bf4 {[%clk 01:32:30]} {[%emt 00:00:07]} O-O {[%clk 01:32:35]} {[%emt
00:00:07]} 6. e3 {[%clk 01:32:54]} {[%emt 00:00:06]} Nbd7 {[%clk 01:32:53]}
{[%emt 00:00:13]} 7. c5 {[%clk 01:33:16]} {[%emt 00:00:08]} Nh5 {[%clk
01:32:37]} {[%emt 00:00:46]} 8. Bd3 {[%clk 01:33:27]} {[%emt 00:00:18]} Nxf4
{[%clk 01:32:44]} {[%emt 00:00:24]} 9. exf4 {[%clk 01:33:50]} {[%emt 00:00:06]}
c6 {[%clk 01:33:09]} {[%emt 00:00:06]} 10. O-O {[%clk 01:34:00]} {[%emt
00:00:20]} b6 {[%clk 01:33:34]} {[%emt 00:00:06]} 11. b4 {[%clk 01:34:21]}
{[%emt 00:00:08]} a5 {[%clk 01:34:00]} {[%emt 00:00:04]} 12. a3 {[%clk
01:34:42]} {[%emt 00:00:09]} Ba6 {[%clk 01:34:27]} {[%emt 00:00:04]} 13. g3
{[%clk 01:30:31]} {[%emt 00:04:40]} Qc8 {[%clk 01:25:21]} {[%emt 00:09:37]} 14.
Qc2 {[%clk 01:24:41]} {[%emt 00:06:19]} g6 {[%clk 01:20:53]} {[%emt 00:04:58]}
15. Rfc1 {[%clk 01:18:07]} {[%emt 00:07:04]} Bxd3 {[%clk 01:19:25]} {[%emt
00:01:58]} 16. Qxd3 {[%clk 01:18:35]} {[%emt 00:00:02]} Qb7 {[%clk 01:19:27]}
{[%emt 00:00:28]} 17. Kg2 {[%clk 01:16:51]} {[%emt 00:02:14]} axb4 {[%clk
01:18:52]} {[%emt 00:01:06]} 18. axb4 {[%clk 01:15:36]} {[%emt 00:01:45]} Rxa1
{[%clk 01:19:17]} {[%emt 00:00:05]} 19. Rxa1 {[%clk 01:15:55]} {[%emt
00:00:11]} Ra8 {[%clk 01:19:42]} {[%emt 00:00:06]} 20. Qb1 {[%clk 01:05:21]}
{[%emt 00:11:03]} Bf6 {[%clk 01:16:31]} {[%emt 00:03:42]} 21. Rxa8+ {[%clk
01:04:26]} {[%emt 00:01:25]} Qxa8 {[%clk 01:16:22]} {[%emt 00:00:38]} 22. Qa2
{[%clk 01:04:40]} {[%emt 00:00:17]} Qb7 {[%clk 01:16:16]} {[%emt 00:00:37]} 23.
Ne2 {[%clk 01:00:44]} {[%emt 00:04:24]} h5 {[%clk 01:12:22]} {[%emt 00:04:24]}
24. Nc1 {[%clk 00:56:13]} {[%emt 00:05:01]} Kg7 {[%clk 01:08:17]} {[%emt
00:04:35]} 25. Qa4 {[%clk 00:53:59]} {[%emt 00:02:44]} Nb8 {[%clk 01:05:38]}
{[%emt 00:03:10]} 26. Nd3 {[%clk 00:48:28]} {[%emt 00:06:01]} Bd8 {[%clk
01:03:42]} {[%emt 00:02:25]} 27. Nde5 {[%clk 00:48:33]} {[%emt 00:00:25]} f6
{[%clk 00:59:30]} {[%emt 00:04:42]} 28. Qc2 {[%clk 00:39:02]} {[%emt 00:10:01]}
fxe5 {[%clk 00:59:54]} {[%emt 00:00:06]} 29. Nxe5 {[%clk 00:39:27]} {[%emt
00:00:06]} Qe7 {[%clk 00:58:47]} {[%emt 00:01:37]} 30. Qxg6+ {[%clk 00:37:17]}
{[%emt 00:02:40]} Kf8 {[%clk 00:59:16]} {[%emt 00:00:02]} 31. Qh6+ {[%clk
00:24:56]} {[%emt 00:12:51]} Kg8 {[%clk 00:58:54]} {[%emt 00:00:52]} 32. Qg6+
{[%clk 00:25:20]} {[%emt 00:00:06]} Kf8 {[%clk 00:59:07]} {[%emt 00:00:17]} 33.
f5 {[%clk 00:20:55]} {[%emt 00:04:55]} Qf6 {[%clk 00:52:12]} {[%emt 00:07:25]}
34. Qh7 {[%clk 00:21:16]} {[%emt 00:00:08]} Qxf5 {[%clk 00:49:56]} {[%emt
00:02:47]} 35. Qb7 {[%clk 00:21:06]} {[%emt 00:00:39]} Ke8 {[%clk 00:43:01]}
{[%emt 00:07:26]} 36. Qxb8 {[%clk 00:19:24]} {[%emt 00:02:12]} h4 {[%clk
00:43:23]} {[%emt 00:00:08]} 37. gxh4 {[%clk 00:17:45]} {[%emt 00:02:09]} Qe4+
{[%clk 00:42:34]} {[%emt 00:01:19]} 38. Nf3 {[%clk 00:17:47]} {[%emt 00:00:27]}
bxc5 {[%clk 00:41:29]} {[%emt 00:01:35]} 39. bxc5 {[%clk 00:17:04]} {[%emt
00:01:12]} Kf7 {[%clk 00:41:31]} {[%emt 00:00:29]} 40. Qe5 {[%clk 00:45:11]}
{[%emt 00:02:23]} Qg4+ {[%clk 01:11:19]} {[%emt 00:00:42]} 41. Qg3 {[%clk
00:45:32]} {[%emt 00:00:09]} Qe4 {[%clk 01:11:39]} {[%emt 00:00:10]} 42. h3
{[%clk 00:44:43]} {[%emt 00:01:18]} Bf6 {[%clk 01:11:43]} {[%emt 00:00:26]} 43.
Qg4 {[%clk 00:44:55]} {[%emt 00:00:18]} Qd3 {[%clk 01:07:01]} {[%emt 00:05:13]}
44. Ng5+ {[%clk 00:42:10]} {[%emt 00:03:15]} Kf8 {[%clk 01:06:53]} {[%emt
00:00:38]} 45. Qxe6 {[%clk 00:40:57]} {[%emt 00:01:43]} Bxg5 {[%clk 01:07:15]}
{[%emt 00:00:08]} 46. hxg5 {[%clk 00:41:18]} {[%emt 00:00:09]} Qxd4 {[%clk
01:07:40]} {[%emt 00:00:04]} 47. g6 {[%clk 00:41:08]} {[%emt 00:00:40]} Qf4
{[%clk 01:07:36]} {[%emt 00:00:35]} 48. Qd6+ {[%clk 00:41:25]} {[%emt
00:00:12]} 1-0